bitfinex/quotes_BTCUSD_20251010
["timestamp","ask_amount","ask_price","bid_price","bid_amount"]
[1760124740987,4.21622731,116550.0,116540.0,0.00015146]
[1760124741204,3.52249731,116550.0,116540.0,0.00015146]
[1760124741407,4.22901731,116550.0,116540.0,0.00015146]
[1760124741616,3.52249731,116550.0,116540.0,0.00015146]
[1760124741840,4.22901731,116550.0,116540.0,0.00015146]
[1760124742491,0.34,116540.0,116530.0,0.04320146]
[1760124742715,0.68896,116540.0,116530.0,0.09102122]
[1760124742994,0.34,116540.0,116530.0,0.15478122]
[1760124743197,0.04065593,116560.0,116530.0,1.24339534]
[1760124743427,0.689,116550.0,116540.0,0.0782019]
[1760124743640,0.70705319,116550.0,116540.0,0.1419619]
[1760124744474,0.70705319,116550.0,116540.0,0.0301519]
[1760124744475,0.73255319,116550.0,116540.0,0.0301519]
[1760124744691,0.73255319,116550.0,116530.0,0.04370636]
[1760124744890,3.499657,116540.0,116530.0,0.0005049]
[1760124745104,4.38021321,116540.0,116530.0,0.0005049]
[1760124745307,4.38120321,116540.0,116530.0,0.0005049]
[1760124745534,3.54130293,116540.0,116530.0,0.0005049]
[1760124745779,4.24790293,116540.0,116530.0,0.0005049]
[1760124745983,4.27410019,116540.0,116530.0,0.0005049]
[1760124746232,1.06564319,116540.0,116530.0,0.0005049]
[1760124746457,0.01805319,116540.0,116530.0,1.32278446]
[1760124746657,0.01964907,116560.0,116550.0,0.20175207]
[1760124746869,0.04520548,116580.0,116550.0,0.25838207]
[1760124746870,0.53013699,116580.0,116550.0,0.25838207]
[1760124747097,0.349,116570.0,116560.0,0.0782019]
[1760124747310,0.11953699,116580.0,116570.0,0.31353263]
[1760124747524,0.14478699,116590.0,116570.0,0.40871263]
[1760124747723,0.2596,116580.0,116570.0,0.40871263]
[1760124747938,0.2596,116580.0,116570.0,1.12675565]
[1760124748157,0.03013699,116590.0,116570.0,1.12675565]
[1760124748378,0.04520548,116600.0,116570.0,1.12675565]
[1760124748379,0.03013699,116600.0,116590.0,0.20169319]
[1760124748593,0.04520548,116610.0,116600.0,0.17152658]
[1760124748594,0.03013699,116610.0,116600.0,0.17152658]
[1760124748814,0.03812089,116610.0,116600.0,1.13141166]
[1760124749036,0.03812089,116610.0,116600.0,1.30058356]
[1760124749037,0.0079839,116610.0,116600.0,1.30058356]
[1760124749295,0.00015124,116610.0,116600.0,1.30058356]
[1760124749490,0.00783266,116620.0,116610.0,0.20166377]
[1760124749695,0.00783266,116620.0,116610.0,0.42380583]
[1760124749903,0.03796965,116620.0,116610.0,1.30056885]
[1760124750117,0.00783266,116620.0,116610.0,1.30056885]
[1760124750330,0.17770247,116630.0,116620.0,0.20164907]
[1760124750533,0.03797248,116630.0,116620.0,0.48733113]
[1760124750742,0.03797248,116630.0,116620.0,1.30055415]
[1760124750958,0.00783549,116630.0,116620.0,1.74055414]
[1760124751169,0.00783549,116630.0,116620.0,0.31583396]
[1760124751584,0.03013699,116630.0,116620.0,0.2327119]
[1760124751784,0.05364433,116630.0,116620.0,0.40420907]
[1760124751998,0.02350734,116630.0,116620.0,0.40420907]
[1760124752219,0.05364433,116640.0,116620.0,1.30055415]
[1760124752459,0.0536453,116640.0,116630.0,0.39362452]
[1760124752676,0.3131653,116640.0,116630.0,0.42377642]
[1760124752897,0.3131653,116640.0,116630.0,0.48731642]
[1760124753110,0.0536453,116640.0,116630.0,0.48731642]
[1760124753389,0.3385853,116640.0,116620.0,0.04585]
[1760124753604,0.3380953,116640.0,116620.0,0.13902]
[1760124753854,0.0536453,116640.0,116630.0,0.21970824]
[1760124754060,0.35828456,116640.0,116630.0,0.2327119]
[1760124754498,0.35828456,116640.0,116630.0,0.1395419]
[1760124754762,0.32819379,116640.0,116630.0,0.1395419]
[1760124754980,0.32819379,116640.0,116630.0,0.0760019]
[1760124755193,0.32868379,116640.0,116620.0,0.04585]
[1760124755406,0.32868379,116640.0,116610.0,0.04585]
[1760124755407,0.10047005,116630.0,116610.0,0.04585]
[1760124755626,0.10047005,116630.0,116620.0,0.42135878]
[1760124755627,0.05359633,116630.0,116620.0,0.42135878]
[1760124755786,0.28294831,116630.0,116620.0,1.30055415]
[1760124755993,0.02350831,116630.0,116620.0,1.30055415]
[1760124756212,0.04575987,116640.0,116630.0,0.20163436]
[1760124756427,0.00783739,116640.0,116630.0,1.30053944]
[1760124756578,0.15276541,116650.0,116640.0,0.20161966]
[1760124756789,0.13850466,116650.0,116640.0,0.48730172]
[1760124757000,0.02366466,116650.0,116640.0,0.48730172]
[1760124757228,0.00798874,116650.0,116640.0,0.48730172]
[1760124757618,0.24543135,116650.0,116640.0,0.48730172]
[1760124757829,0.24543135,116650.0,116640.0,0.31583396]
[1760124757830,0.28335676,116650.0,116640.0,0.31583396]
[1760124758072,0.31407341,116650.0,116640.0,0.31583396]
[1760124758274,0.31407065,116650.0,116640.0,0.1395419]
[1760124758508,0.32819065,116650.0,116640.0,0.10939]
[1760124758713,0.43560197,116650.0,116640.0,0.10939]
[1760124758929,0.39046994,116650.0,116640.0,0.1395419]
[1760124759563,0.39046994,116650.0,116640.0,0.0760019]
[1760124759711,3.55012694,116650.0,116640.0,0.0301519]
[1760124759920,3.159657,116640.0,116620.0,0.13902]
[1760124760135,0.35981437,116630.0,116610.0,0.04585]
[1760124760353,3.159657,116620.0,116610.0,0.04585]
[1760124760504,0.01804905,116620.0,116610.0,0.04585]
[1760124760708,0.00049,116620.0,116610.0,0.0301519]
[1760124760910,0.00049,116620.0,116600.0,0.04585]
[1760124761164,0.86435746,116630.0,116600.0,0.13902]
[1760124761364,3.159657,116620.0,116610.0,0.06300118]
[1760124761579,0.01804905,116620.0,116610.0,0.04585]
[1760124761778,0.34872,116620.0,116610.0,0.0760019]
[1760124762062,5.0,116620.0,116610.0,0.0760019]
[1760124762320,5.0,116620.0,116590.0,0.04585]
[1760124762321,1.18048207,116620.0,116590.0,0.04585]
[1760124762539,0.34,116590.0,116580.0,0.04585]
[1760124762755,0.25936,116590.0,116580.0,0.04585]
[1760124762965,0.26034,116590.0,116570.0,0.04585]
[1760124763172,0.08936,116580.0,116570.0,0.04585]
[1760124763805,0.08936,116580.0,116570.0,0.04600124]
[1760124764460,0.08936,116580.0,116570.0,0.00015124]
[1760124764461,1.26832302,116580.0,116570.0,0.00015124]
[1760124764692,6.67477302,116580.0,116570.0,0.00015124]
[1760124765154,6.69282073,116580.0,116570.0,0.00015124]
[1760124765812,6.50534073,116580.0,116570.0,0.00015124]
[1760124766023,1.95218073,116580.0,116570.0,0.00015124]
[1760124766258,6.95218073,116580.0,116570.0,0.00015124]
[1760124766472,7.25218073,116580.0,116570.0,0.00015124]
[1760124766903,7.65478335,116580.0,116570.0,0.00015124]
[1760124767117,7.6548241,116580.0,116570.0,0.00015124]
[1760124767335,6.2911441,116580.0,116570.0,0.00015124]
[1760124767610,6.27610417,116580.0,116570.0,0.00015124]
[1760124767792,6.98234417,116580.0,116570.0,0.00015124]
[1760124768465,0.46288115,116580.0,116570.0,0.00015124]
[1760124768677,2.02746754,116580.0,116570.0,0.00015124]
[1760124768893,6.98234417,116580.0,116570.0,0.00015124]
[1760124769559,7.52402354,116580.0,116570.0,0.00015124]
[1760124769775,7.35246753,116580.0,116570.0,0.00015124]
[1760124769986,7.62062753,116580.0,116570.0,0.00015124]
[1760124770192,7.68506754,116580.0,116570.0,0.00015124]
[1760124770420,2.63994417,116580.0,116570.0,0.00015124]
[1760124770632,7.63994417,116580.0,116570.0,0.00015124]
[1760124771068,6.57610417,116580.0,116570.0,0.00015124]
[1760124771285,7.63994417,116580.0,116570.0,0.00015124]
[1760124771495,6.57610417,116580.0,116570.0,0.00015124]
[1760124771703,1.57610417,116580.0,116570.0,0.00015124]
[1760124771915,0.34,116550.0,116540.0,0.06619503]
[1760124772157,1.13971049,116550.0,116540.0,0.06619503]
[1760124772409,1.09457153,116550.0,116540.0,0.11556503]
[1760124772656,0.38829153,116550.0,116530.0,0.23816155]
[1760124772883,0.38829153,116550.0,116540.0,0.31397679]
[1760124773112,0.70695889,116550.0,116540.0,0.2418919]
[1760124773350,0.70695889,116550.0,116540.0,0.41350679]
[1760124773562,0.39674716,116550.0,116540.0,0.41350679]
[1760124773812,0.36695889,116550.0,116540.0,0.41350679]
[1760124774028,0.01819889,116550.0,116540.0,0.41350679]
[1760124774273,0.27755889,116550.0,116540.0,0.41350679]
[1760124774465,0.01819889,116550.0,116540.0,0.41350679]
[1760124774714,0.36695889,116550.0,116540.0,0.2418919]
[1760124774949,0.36695889,116550.0,116530.0,0.04937]
[1760124775202,0.36695889,116550.0,116510.0,0.04977]
[1760124775203,5.02525,116540.0,116510.0,0.04977]
[1760124775431,5.02493,116520.0,116510.0,0.04977]
[1760124775652,0.6976,116530.0,116520.0,0.04937]
[1760124775871,1.06440777,116530.0,116520.0,0.11221]
[1760124776086,1.06440777,116530.0,116520.0,0.21174]
[1760124776327,1.06440777,116530.0,116520.0,0.11221]
[1760124776783,0.35804777,116530.0,116520.0,0.11221]
[1760124776996,1.06440777,116530.0,116520.0,0.1423619]
[1760124777202,5.0,116520.0,116510.0,0.04977]
[1760124777413,5.04232777,116520.0,116510.0,0.0004]
[1760124777620,0.04232777,116520.0,116510.0,0.0004]
[1760124778055,0.01804777,116520.0,116510.0,0.43111688]
[1760124778274,0.36680777,116520.0,116510.0,0.2422919]
[1760124778499,0.36680777,116520.0,116510.0,0.41395098]
[1760124778722,0.39173777,116520.0,116510.0,0.0305519]
[1760124779162,1.13887777,116520.0,116510.0,0.0004]
[1760124779382,2.28219343,116520.0,116510.0,0.0004]
[1760124779591,6.11996041,116520.0,116510.0,0.0004]
[1760124779865,6.11996041,116520.0,116510.0,0.10962]
[1760124779866,1.09454041,116520.0,116510.0,0.10962]
[1760124780215,1.09454041,116520.0,116510.0,0.0004]
[1760124780216,6.16946041,116520.0,116510.0,0.0004]
[1760124780405,6.11996041,116520.0,116510.0,0.0004]
[1760124780643,6.42045041,116520.0,116510.0,0.0004]
[1760124780870,6.11947041,116520.0,116510.0,0.0004]
[1760124781094,6.12093041,116520.0,116510.0,0.0004]
[1760124781591,7.02735239,116520.0,116510.0,0.0004]
[1760124781793,7.32735239,116520.0,116510.0,0.0004]
[1760124781992,6.51412937,116520.0,116510.0,0.0004]
[1760124782340,7.29725975,116520.0,116510.0,0.0004]
[1760124782788,2.91230607,116520.0,116510.0,0.0004]
[1760124782993,0.34,116490.0,116470.0,0.06619503]
[1760124783207,5.40386068,116480.0,116470.0,0.06619503]
[1760124783430,5.42190845,116480.0,116470.0,0.28549306]
[1760124783638,0.01804777,116480.0,116470.0,0.47561496]
[1760124783848,0.01804777,116480.0,116470.0,0.20755]
[1760124783849,0.36680777,116480.0,116470.0,0.20755]
[1760124784056,0.01804777,116480.0,116470.0,0.40941993]
[1760124784268,0.36680777,116480.0,116470.0,0.40992483]
[1760124784515,0.36680777,116480.0,116470.0,0.0306568]
[1760124784744,0.36680777,116480.0,116470.0,0.0005049]
[1760124784961,5.39730845,116480.0,116470.0,0.0005049]
[1760124785181,6.91454681,116480.0,116470.0,0.0005049]
[1760124785374,6.86953079,116480.0,116470.0,0.0005049]
[1760124785630,6.63832794,116480.0,116470.0,0.0005049]
[1760124785835,6.02692913,116480.0,116470.0,0.0005049]
[1760124786050,6.38464913,116480.0,116470.0,0.0005049]
[1760124786265,7.0410041,116480.0,116470.0,0.0005049]
[1760124786474,6.99604794,116480.0,116470.0,0.0005049]
[1760124786707,5.65853777,116480.0,116470.0,0.0005049]
[1760124786923,0.78183033,116480.0,116470.0,0.1097249]
[1760124787102,0.78183033,116480.0,116470.0,0.29752057]
[1760124787103,0.61740777,116480.0,116470.0,0.29752057]
[1760124787403,0.41799611,116480.0,116470.0,0.28034877]
[1760124787653,0.76679611,116480.0,116470.0,0.04758]
[1760124787892,0.76679611,116480.0,116470.0,0.10922]
[1760124788124,0.76679611,116480.0,116470.0,0.2327019]
[1760124788357,1.39831628,116480.0,116460.0,0.04758]
[1760124788585,1.39831628,116480.0,116460.0,0.0001517]
[1760124788586,0.94686017,116470.0,116460.0,0.0001517]
[1760124788860,6.32559628,116470.0,116460.0,0.0001517]
[1760124789097,6.67460628,116470.0,116460.0,0.0001517]
[1760124789320,5.0,116440.0,116430.0,0.04758]
[1760124789542,5.4419581,116440.0,116430.0,0.04758]
[1760124789755,1.43100456,116440.0,116420.0,0.11377503]
[1760124789971,0.02998457,116430.0,116420.0,0.11377503]
[1760124790185,0.04803234,116430.0,116420.0,0.11377503]
[1760124790406,0.04803234,116430.0,116410.0,0.04798]
[1760124791049,0.25936,116420.0,116410.0,0.04798]
[1760124791273,0.30278777,116420.0,116410.0,0.0004]
[1760124791495,0.64278777,116420.0,116410.0,0.0004]
[1760124791725,0.64278777,116420.0,116410.0,0.10962]
[1760124791726,0.70684777,116420.0,116410.0,0.10962]
[1760124791990,0.76221234,116420.0,116410.0,0.0004]
[1760124792242,6.39373251,116420.0,116410.0,0.0004]
[1760124792520,6.36374794,116420.0,116410.0,0.0004]
[1760124792745,6.52202017,116410.0,116400.0,0.0004]
[1760124792953,6.54006794,116410.0,116400.0,0.0004]
[1760124793164,7.07223777,116410.0,116400.0,0.0004]
[1760124793379,6.62491777,116410.0,116400.0,0.0004]
[1760124793597,6.58965794,116410.0,116400.0,0.0004]
[1760124793814,7.20693794,116410.0,116400.0,0.0004]
[1760124794042,6.03757747,116410.0,116400.0,0.0004]
[1760124794254,6.71386777,116410.0,116400.0,0.0004]
[1760124794464,0.35804777,116410.0,116400.0,0.04773403]
[1760124794650,0.35804777,116410.0,116400.0,0.0781319]
[1760124794651,0.36692777,116410.0,116400.0,0.0781319]
[1760124794900,0.01804777,116410.0,116400.0,0.0781319]
[1760124795119,1.06484777,116410.0,116400.0,0.0781319]
[1760124795340,1.06488777,116410.0,116400.0,0.25528403]
[1760124795574,1.06488777,116410.0,116400.0,0.0781319]
[1760124795786,0.35804777,116410.0,116400.0,0.0305519]
[1760124796016,0.35804777,116410.0,116400.0,0.0781319]
[1760124796270,0.0479474,116410.0,116400.0,0.4099232]
[1760124796476,0.2896674,116410.0,116400.0,0.4099232]
[1760124796700,0.2896674,116410.0,116400.0,0.1397719]
[1760124796925,0.84227794,116410.0,116400.0,0.0305519]
[1760124797150,1.18227794,116410.0,116400.0,0.0004]
[1760124797376,6.23128794,116410.0,116400.0,0.0004]
[1760124797820,5.64926777,116410.0,116400.0,0.0004]
[1760124798030,5.60025777,116410.0,116400.0,0.0004]
[1760124798292,6.23128794,116410.0,116400.0,0.0004]
[1760124798503,5.35804777,116410.0,116400.0,0.0004]
[1760124798750,0.36696777,116410.0,116400.0,0.2381019]
[1760124798976,0.04795125,116410.0,116400.0,0.1397719]
[1760124799191,0.39742125,116410.0,116400.0,0.0305519]
[1760124799431,5.73796125,116410.0,116400.0,0.0305519]
[1760124799641,6.61998142,116410.0,116400.0,0.0305519]
[1760124799879,6.64400794,116410.0,116400.0,0.0004]
[1760124800092,6.70397537,116410.0,116400.0,0.0004]
[1760124800306,6.00805777,116410.0,116400.0,0.0004]
[1760124800529,6.64811794,116410.0,116400.0,0.0004]
[1760124800736,7.00204794,116410.0,116400.0,0.0004]
[1760124800949,6.06609777,116410.0,116400.0,0.0004]
[1760124801163,1.06500777,116410.0,116400.0,0.1397719]
[1760124801374,0.38796287,116410.0,116400.0,0.0781319]
[1760124801602,1.06555777,116410.0,116400.0,0.0305519]
[1760124801825,6.06555777,116410.0,116400.0,0.0305519]
[1760124802041,6.12001777,116410.0,116400.0,0.0004]
[1760124802309,6.70203794,116410.0,116400.0,0.0004]
[1760124802548,1.76270717,116400.0,116390.0,0.0004]
[1760124802748,1.81137494,116400.0,116390.0,0.0004]
[1760124802967,1.28466477,116400.0,116390.0,0.0004]
[1760124803212,6.13683605,116390.0,116380.0,0.03465]
[1760124803420,0.34,116330.0,116320.0,0.04758]
[1760124803669,1.06528777,116330.0,116320.0,0.04758]
[1760124803924,0.35804777,116330.0,116320.0,0.04808562]
[1760124804129,0.35804777,116330.0,116320.0,0.20805562]
[1760124804348,0.36724777,116330.0,116320.0,0.04808562]
[1760124804794,0.39254777,116330.0,116320.0,0.00050562]
[1760124805014,0.39254777,116330.0,116320.0,0.20805562]
[1760124805015,0.27768777,116330.0,116320.0,0.20805562]
[1760124805238,0.01804777,116330.0,116320.0,0.20805562]
[1760124805454,0.27768777,116330.0,116320.0,0.41014699]
[1760124805712,0.27768777,116330.0,116320.0,0.13987752]
[1760124805932,0.27768777,116330.0,116320.0,0.49326905]
[1760124806141,0.27768777,116330.0,116320.0,0.23820752]
[1760124806355,0.25964,116330.0,116320.0,0.23820752]
[1760124806571,0.25964,116330.0,116320.0,0.03065752]
[1760124806572,0.30278073,116330.0,116320.0,0.03065752]
[1760124806785,5.90723847,116330.0,116320.0,0.00050562]
[1760124806997,6.27716179,116330.0,116320.0,0.00050562]
[1760124807214,6.32615633,116330.0,116320.0,0.00050562]
[1760124807427,6.01701633,116330.0,116320.0,0.00050562]
[1760124807634,6.16186284,116330.0,116320.0,0.00050562]
[1760124807845,6.77380633,116330.0,116320.0,0.00050562]
[1760124808060,6.19178616,116330.0,116320.0,0.00050562]
[1760124808271,6.46936405,116330.0,116320.0,0.00050562]
[1760124808485,6.43944073,116330.0,116320.0,1.562e-05]
[1760124808911,7.0214609,116330.0,116320.0,1.562e-05]
[1760124809134,1.3141809,116330.0,116320.0,1.562e-05]
[1760124809385,6.09032073,116330.0,116320.0,1.562e-05]
[1760124809632,5.73216073,116330.0,116320.0,1.562e-05]
[1760124809879,0.11742914,116330.0,116320.0,0.03016752]
[1760124810114,5.7775366,116330.0,116320.0,0.04736146]
[1760124810330,0.38038524,116330.0,116320.0,0.23309752]
[1760124810574,0.38038524,116330.0,116320.0,0.40503699]
[1760124810575,0.04038524,116330.0,116320.0,0.40503699]
[1760124810805,0.38946524,116330.0,116320.0,0.03016752]
[1760124811034,0.36703073,116330.0,116320.0,0.03016752]
[1760124811537,0.27755073,116330.0,116320.0,0.40503699]
[1760124811771,0.31089494,116330.0,116320.0,0.03016752]
[1760124812044,0.33332945,116330.0,116320.0,0.23309752]
[1760124812287,6.29414962,116330.0,116320.0,1.562e-05]
[1760124812490,6.29275352,116330.0,116320.0,1.562e-05]
[1760124812711,5.4212063,116330.0,116320.0,0.20294562]
[1760124812952,0.67358998,116330.0,116320.0,0.23309752]
[1760124813157,0.76314998,116330.0,116320.0,0.23309752]
[1760124813345,0.41374998,116330.0,116320.0,0.07986752]
[1760124813592,0.76314998,116330.0,116320.0,0.07986752]
[1760124813798,0.76314998,116330.0,116320.0,1.562e-05]
[1760124813799,6.40151151,116330.0,116320.0,1.562e-05]
[1760124814006,6.77630352,116330.0,116320.0,1.562e-05]
[1760124814216,1.11251199,116330.0,116320.0,1.562e-05]
[1760124814424,6.74640216,116330.0,116320.0,1.562e-05]
[1760124814637,6.74640216,116330.0,116320.0,0.06223562]
[1760124814638,0.73616199,116330.0,116320.0,0.06223562]
[1760124814851,1.15133151,116330.0,116320.0,0.25029146]
[1760124815061,0.07376836,116330.0,116320.0,0.98705716]
[1760124815513,0.07376836,116330.0,116320.0,1.07017922]
[1760124815720,0.05129494,116330.0,116320.0,0.48815905]
[1760124815947,0.29221494,116330.0,116320.0,0.42593905]
[1760124816127,0.29221494,116330.0,116320.0,1.00795922]
[1760124816365,0.29221494,116330.0,116320.0,0.42593905]
[1760124816569,0.29221494,116330.0,116320.0,1.00795922]
[1760124816786,0.29221494,116330.0,116320.0,0.42593905]
[1760124817194,0.29221494,116330.0,116320.0,1.00795922]
[1760124817641,0.05129494,116330.0,116320.0,1.00795922]
[1760124818063,0.16975342,116330.0,116320.0,0.42593905]
[1760124818263,0.19214705,116330.0,116320.0,0.42593905]
[1760124818551,0.19214705,116330.0,116320.0,0.17087752]
[1760124819008,0.19214705,116330.0,116320.0,0.34281699]
[1760124819235,0.30450705,116330.0,116320.0,0.40503699]
[1760124819464,0.30450705,116330.0,116320.0,0.23309752]
[1760124819695,0.30450705,116330.0,116320.0,0.40503699]
[1760124820190,0.33459425,116330.0,116320.0,0.40503699]
[1760124820423,0.04515667,116340.0,116330.0,0.20206422]
[1760124820649,0.30479667,116340.0,116330.0,1.07013645]
[1760124820897,0.02258018,116340.0,116330.0,1.07013645]
[1760124821121,0.28222018,116350.0,116340.0,0.20206181]
[1760124821344,0.28222018,116350.0,116340.0,1.07013404]
[1760124821594,0.28222018,116350.0,116340.0,0.48811387]
[1760124821796,0.28222018,116350.0,116340.0,0.31620396]
[1760124822006,0.28222018,116350.0,116340.0,0.0798519]
[1760124822210,0.25964,116350.0,116340.0,0.0497]
[1760124822428,0.25964,116350.0,116340.0,0.0798519]
[1760124822645,0.322008,116340.0,116320.0,1.562e-05]
[1760124822853,0.74006,116330.0,116320.0,1.562e-05]
[1760124823067,5.8121662,116330.0,116320.0,1.562e-05]
[1760124823278,6.39418637,116330.0,116320.0,1.562e-05]
[1760124823463,7.01158017,116330.0,116320.0,1.562e-05]
[1760124823700,2.31158017,116330.0,116320.0,1.562e-05]
[1760124823907,6.60410017,116330.0,116320.0,1.562e-05]
[1760124824110,6.60410017,116330.0,116300.0,0.00047]
[1760124824111,0.34,116320.0,116300.0,0.00047]
[1760124824319,5.25984,116310.0,116300.0,0.00062105]
[1760124824760,5.86918017,116310.0,116300.0,0.00062105]
[1760124824989,5.41264873,116310.0,116280.0,0.0516]
[1760124825213,5.0,116300.0,116280.0,0.05210362]
[1760124825447,0.34924,116290.0,116280.0,0.00240362]
[1760124826622,5.96384017,116290.0,116280.0,0.00240362]
[1760124826831,6.31334017,116290.0,116280.0,0.00240362]
[1760124827038,5.0,116280.0,116270.0,0.47410362]
[1760124827240,5.43470131,116280.0,116270.0,0.47410362]
[1760124827450,5.07638131,116280.0,116270.0,0.47410362]
[1760124827656,6.70331148,116280.0,116270.0,0.47410362]
[1760124827868,7.09281148,116280.0,116270.0,0.47410362]
[1760124828077,7.40713637,116280.0,116270.0,0.47410362]
[1760124828291,6.7357562,116280.0,116270.0,0.47410362]
[1760124828532,7.33282381,116280.0,116270.0,0.47410362]
[1760124828746,6.8253162,116280.0,116270.0,0.47410362]
[1760124828952,6.75080364,116280.0,116270.0,0.47410362]
[1760124829154,7.33282381,116280.0,116270.0,0.47410362]
[1760124829375,6.75080364,116280.0,116270.0,0.47410362]
[1760124829593,6.32506381,116280.0,116270.0,0.47410362]
[1760124829808,0.69354364,116280.0,116270.0,0.47410362]
[1760124830029,0.54222928,116280.0,116270.0,0.47410362]
[1760124830281,0.72617105,116280.0,116270.0,0.47410362]
[1760124830497,7.35068708,116280.0,116270.0,0.47410362]
[1760124830718,6.13553947,116280.0,116270.0,0.47410362]
[1760124830955,6.36805964,116280.0,116270.0,0.47410362]
[1760124831154,5.47159081,116280.0,116270.0,0.47410362]
[1760124831375,6.76369098,116280.0,116270.0,0.47410362]
[1760124831609,7.06369098,116280.0,116270.0,0.47410362]
[1760124831834,6.05361098,116280.0,116270.0,0.47410362]
[1760124832053,5.69796512,116280.0,116270.0,0.47410362]
[1760124832274,0.57958956,116280.0,116270.0,0.47410362]
[1760124832493,1.40792512,116280.0,116270.0,0.47410362]
[1760124832717,1.42356807,116280.0,116270.0,0.47410362]
[1760124832933,6.77306821,116280.0,116270.0,0.47410362]
[1760124833161,7.11306821,116280.0,116270.0,0.47410362]
[1760124833634,6.53104804,116280.0,116270.0,0.47410362]
[1760124833852,5.77158804,116280.0,116270.0,0.47410362]
[1760124834059,5.45267804,116280.0,116270.0,0.47410362]
[1760124834272,5.45267804,116280.0,116270.0,0.52368362]
[1760124834273,0.36997105,116280.0,116270.0,0.52368362]
[1760124834482,0.95199122,116280.0,116270.0,0.47410362]
[1760124834685,0.36997105,116280.0,116270.0,0.47410362]
[1760124834976,0.01853105,116280.0,116270.0,0.47410362]
[1760124835233,0.01853105,116280.0,116270.0,0.85383703]
[1760124835472,0.01853105,116280.0,116270.0,0.88398893]
[1760124835693,0.28025105,116280.0,116270.0,0.96711099]
[1760124835899,0.28025105,116280.0,116270.0,1.54913116]
[1760124836177,0.30276883,116280.0,116270.0,1.54913116]
[1760124836421,0.30280883,116280.0,116270.0,1.54913116]
[1760124836623,0.30280883,116280.0,116270.0,0.96711099]
[1760124837598,0.04104883,116280.0,116270.0,0.96711099]
[1760124837796,0.21732883,116280.0,116270.0,0.96711099]
[1760124838173,0.19481105,116280.0,116270.0,0.96711099]
[1760124838991,0.27997105,116280.0,116270.0,0.96711099]
[1760124840506,0.27997105,116280.0,116270.0,0.71197552]
[1760124840727,0.30248883,116280.0,116270.0,0.88651893]
[1760124840925,0.30248883,116280.0,116270.0,0.55383552]
[1760124841129,0.30248883,116280.0,116270.0,0.88533893]
[1760124842383,0.01853105,116280.0,116270.0,1.55048116]
[1760124842808,0.04054446,116300.0,116290.0,0.20213573]
[1760124843024,0.16606446,116300.0,116290.0,1.075538]
[1760124843247,0.14354668,116300.0,116290.0,1.075538]
[1760124843960,0.01802668,116300.0,116290.0,0.49351783]
[1760124844167,0.27890668,116300.0,116290.0,0.49351783]
[1760124844590,0.30142446,116300.0,116290.0,0.04877004]
[1760124844803,0.32874446,116300.0,116290.0,0.00015004]
[1760124845036,0.27890668,116300.0,116290.0,0.09099194]
[1760124845276,0.27890668,116300.0,116290.0,0.13961194]
[1760124845490,0.27890668,116300.0,116290.0,0.03030194]
[1760124845740,0.01802668,116300.0,116290.0,1.32820642]
[1760124845963,0.01802668,116300.0,116290.0,1.31100804]
[1760124846180,0.28340167,116310.0,116300.0,1.01961115]
[1760124846181,0.01801962,116310.0,116300.0,1.01961115]
[1760124846396,0.01801962,116310.0,116300.0,1.31084321]
[1760124846613,0.13353962,116310.0,116300.0,1.31084321]
[1760124846860,0.00801962,116310.0,116300.0,1.31084321]
[1760124847066,0.02252167,116350.0,116340.0,0.0301519]
[1760124847278,0.52478896,116350.0,116340.0,0.0787719]
[1760124847486,0.52478896,116350.0,116340.0,0.1394619]
[1760124847688,0.11994896,116350.0,116340.0,0.41017181]
[1760124847907,0.11994896,116350.0,116340.0,1.31078408]
[1760124847908,0.03034896,116350.0,116340.0,1.31078408]
[1760124848127,0.00782729,116350.0,116340.0,1.31078408]
[1760124848344,0.0896,116370.0,116360.0,0.0301519]
[1760124848865,0.01572875,116400.0,116370.0,0.00859328]
[1760124849081,0.0896,116380.0,116370.0,0.26782406]
[1760124849274,0.0896,116380.0,116370.0,0.4101275]
[1760124849504,0.35052,116380.0,116370.0,0.4101275]
[1760124849720,0.01572875,116400.0,116370.0,0.2382619]
[1760124849921,5.0,116380.0,116370.0,0.4101269]
[1760124850036,5.0,116380.0,116370.0,0.2382619]
[1760124850279,5.0,116400.0,116380.0,0.18044074]
[1760124850479,5.35836,116400.0,116390.0,0.1264936]
[1760124850811,5.70864,116400.0,116380.0,0.14742]
[1760124851140,5.0,116380.0,116360.0,0.04862]
[1760124851377,0.26068,116370.0,116360.0,0.0787719]
[1760124851572,0.35024,116370.0,116360.0,0.17772194]
[1760124851779,0.35024,116370.0,116360.0,0.23841194]
[1760124851980,0.35024,116370.0,116360.0,0.31149231]
[1760124852194,0.08956,116370.0,116360.0,0.41029231]
[1760124852444,0.08956,116370.0,116360.0,0.31149231]
[1760124852675,0.08956,116370.0,116360.0,0.41029231]
[1760124853087,5.0,116380.0,116370.0,0.1718656]
[1760124853320,0.08956,116380.0,116370.0,0.4101275]
[1760124853527,0.35,116380.0,116370.0,0.4101275]
[1760124854611,0.35,116380.0,116370.0,0.0301519]
[1760124854612,0.38468,116380.0,116370.0,0.0301519]
[1760124854830,0.38468,116380.0,116360.0,0.04877004]
[1760124855053,0.35,116380.0,116370.0,0.10931]
[1760124855277,0.02391,116390.0,116370.0,0.37996205]
[1760124855508,0.34976,116380.0,116370.0,0.1394619]
[1760124855727,0.34976,116380.0,116370.0,0.0787719]
[1760124855960,0.34976,116380.0,116370.0,0.3113275]
[1760124856186,0.34996,116400.0,116380.0,0.17185066]
[1760124856404,0.01828,116410.0,116390.0,0.0658036]
[1760124856656,0.34968,116400.0,116390.0,0.39712395]
[1760124856865,0.3498,116400.0,116390.0,0.41009225]
[1760124857327,0.3498,116400.0,116390.0,0.2382619]
[1760124857553,0.3498,116400.0,116390.0,0.1394619]
[1760124857791,0.36,116400.0,116380.0,0.04862]
[1760124858224,0.01816,116410.0,116390.0,0.31129252]
[1760124858434,0.08956,116420.0,116410.0,0.20195844]
[1760124858585,0.34972,116420.0,116410.0,0.41006844]
[1760124858813,0.34972,116420.0,116410.0,0.1394619]
[1760124859015,5.0,116410.0,116400.0,0.04862]
[1760124859372,0.0565475,116410.0,116400.0,0.0301519]
[1760124859573,0.02693499,116410.0,116400.0,0.0301519]
[1760124859795,0.00050499,116410.0,116400.0,0.2382619]
[1760124859993,0.00050499,116410.0,116390.0,0.04862]
[1760124859994,0.02693499,116410.0,116390.0,0.04862]
[1760124860201,1.07757021,116400.0,116390.0,0.04862]
[1760124860369,0.26788277,116400.0,116390.0,0.04862]
[1760124860572,0.71556277,116400.0,116390.0,0.04862]
[1760124860978,0.71579277,116400.0,116380.0,0.04862]
[1760124861181,0.71579277,116400.0,116370.0,0.04862]
[1760124861182,0.84111021,116390.0,116370.0,0.04862]
[1760124861348,0.84111021,116390.0,116360.0,0.14742]
[1760124861349,6.07749021,116380.0,116360.0,0.04862]
[1760124861559,5.81749021,116370.0,116360.0,0.04862]